bitfinex/quotes_ETHUSD_20240715
["timestamp","ask_amount","ask_price","bid_price","bid_amount"]
[1721049611583,0.77156211,3359.6,3358.8,7.28]
[1721049611584,2.3856,3359.2,3358.9,2.97713]
[1721049611781,0.93623467,3359.0,3358.9,2.97713]
[1721049611983,1.16241009,3359.1,3359.0,2.97707]
[1721049612187,3.63384986,3359.2,3359.1,2.97698]
[1721049612188,2.3856,3359.2,3359.1,2.97698]
[1721049612382,3.54743563,3359.2,3359.1,2.97698]
[1721049612687,3.54731754,3359.2,3359.1,2.97698]
[1721049612889,3.32137258,3359.2,3359.1,6.50396]
[1721049613212,3.23512789,3359.2,3359.1,6.50396]
[1721049614916,3.00919982,3359.2,3359.1,6.50396]
[1721049615211,2.61136084,3359.2,3359.1,6.50396]
[1721049615517,2.61130238,3359.2,3359.1,6.50396]
[1721049615922,3.2349022,3359.2,3359.1,6.50396]
[1721049616128,2.23318444,3360.3,3359.1,6.50396]
[1721049616129,2.16e-06,3359.6,3359.1,5.9976]
[1721049616321,2.92136189,3360.5,3360.4,5.95166]
[1721049616322,0.1170191,3360.5,3360.4,5.95166]
[1721049616623,0.1170191,3360.5,3360.0,2.97618]
[1721049616930,0.62300973,3360.3,3360.1,5.97609]
[1721049617096,0.62300973,3360.3,3360.1,6.52609]
[1721049617310,2.2827,3360.4,3360.2,2.97601]
[1721049617512,2.2827,3360.4,3360.3,0.55]
[1721049618193,2.2827,3360.4,3360.3,3.52592]
[1721049619015,0.74002883,3360.5,3360.3,3.52592]
[1721049619319,0.1170191,3360.5,3360.3,3.52592]
[1721049619626,0.1170191,3360.5,3360.4,2.97583]
[1721049619944,0.58099893,3360.5,3360.4,2.97583]
[1721049620153,1.05168756,3360.5,3360.4,2.97583]
[1721049620435,0.74015385,3360.5,3360.4,2.97583]
[1721049621137,1.05168756,3360.5,3360.4,2.97583]
[1721049621286,1.05168756,3360.5,3360.3,3.52588]
[1721049621489,0.62310933,3360.4,3360.3,3.52588]
[1721049621722,0.62310933,3360.4,3360.3,6.5018]
[1721049621920,0.74012843,3360.5,3360.4,5.95166]
[1721049622227,0.74012843,3360.5,3360.4,6.50166]
[1721049622534,0.74008735,3360.5,3360.4,6.50166]
[1721049623316,0.74008735,3360.5,3360.4,3.52583]
[1721049623497,0.74008735,3360.5,3360.4,6.50166]
[1721049623693,0.74008735,3360.5,3360.4,3.52583]
[1721049623694,0.1170191,3360.5,3360.4,3.52583]
[1721049624396,0.74008735,3360.5,3360.4,3.52583]
[1721049624604,0.1170191,3360.5,3360.4,3.52583]
[1721049625299,0.1170191,3360.5,3360.4,6.50166]
[1721049625718,0.1170191,3360.5,3360.4,9.47749]
[1721049625919,0.1170191,3360.5,3360.4,12.47749]
[1721049627320,0.1170191,3360.5,3360.4,9.50166]
[1721049628595,0.1170191,3360.5,3360.4,12.47749]
[1721049629831,0.1170191,3360.5,3360.4,9.50166]
[1721049632323,0.1170191,3360.5,3360.4,12.47749]
[1721049632707,0.1170191,3360.5,3360.4,9.50166]
[1721049632909,0.1170191,3360.5,3360.4,12.47749]
[1721049633227,0.1170191,3360.5,3360.4,9.50166]
[1721049634028,0.1170191,3360.5,3360.4,12.47749]
[1721049634449,0.1170191,3360.5,3360.4,9.50166]
[1721049634634,0.1170191,3360.5,3360.4,12.47749]
[1721049635841,0.1170191,3360.5,3360.4,14.84449]
[1721049636143,0.9342967,3361.5,3360.4,14.84449]
[1721049636144,0.62286447,3361.5,3360.4,8.89283]
[1721049636360,1.55716117,3362.2,3361.2,2.605]
[1721049636560,0.28547337,3362.2,3362.1,2.97433]
[1721049636735,0.28547337,3362.2,3361.7,2.97462]
[1721049636937,0.28547337,3362.2,3361.8,3.52459]
[1721049636938,0.62248893,3361.9,3361.8,3.52459]
[1721049637124,0.75758036,3361.9,3361.8,3.52459]
[1721049637652,0.75758036,3361.9,3360.6,10.25558]
[1721049637653,2.492,3361.8,3360.9,2.97535]
[1721049637865,0.62240768,3361.4,3361.2,2.97512]
[1721049638174,2.492,3361.3,3360.8,2.9754]
[1721049638481,0.75757625,3361.2,3360.8,2.9754]
[1721049638685,0.13510594,3361.1,3360.8,2.9754]
[1721049638963,0.62247031,3361.1,3360.8,2.97547]
[1721049639264,0.13530448,3361.0,3360.9,2.97539]
[1721049639429,0.62247031,3361.2,3360.9,2.97539]
[1721049639630,3.11447031,3361.3,3360.9,2.97539]
[1721049639833,0.1352565,3361.2,3360.9,2.97539]
[1721049640091,0.1352565,3361.2,3361.0,2.97522]
[1721049640092,0.75773867,3361.2,3361.0,2.97522]
[1721049640233,0.62247031,3361.2,3361.0,2.97522]
[1721049640637,0.60367261,3361.2,3360.8,2.97548]
[1721049640857,0.60367261,3361.2,3360.6,2.97559]
[1721049640858,0.62241447,3361.0,3360.6,2.97559]
[1721049641023,0.62241447,3360.9,3360.7,3.52555]
[1721049641227,0.93362171,3361.0,3360.7,3.52555]
[1721049641228,0.696804,3361.0,3360.7,3.52555]
[1721049641438,0.13531078,3360.9,3360.8,2.97548]
[1721049641649,0.62241447,3361.0,3360.8,2.97548]
[1721049641864,1.15913982,3361.0,3360.3,2.97588]
[1721049642031,0.62249327,3360.6,3359.8,2.97633]
[1721049642335,0.62249327,3360.6,3359.9,2.97626]
[1721049642336,0.62249327,3360.1,3359.9,2.97626]
[1721049642529,0.62249327,3360.1,3359.7,2.97645]
[1721049642530,0.62249327,3360.2,3360.0,2.97619]
[1721049642733,0.62249327,3360.1,3360.0,2.97619]
[1721049643399,0.75800665,3360.1,3359.7,2.97645]
[1721049643531,0.62258885,3360.1,3359.6,2.97653]
[1721049643736,0.62258885,3360.1,3359.7,3.0]
[1721049643965,0.83254846,3360.0,3359.9,2.97625]
[1721049644202,0.20995961,3360.0,3359.9,2.97625]
[1721049644468,0.07440859,3360.0,3359.9,2.97625]
[1721049644797,0.62258885,3360.2,3359.9,3.52625]
[1721049644962,0.62258885,3360.2,3360.0,2.97617]
[1721049645312,0.62258885,3360.3,3360.0,2.97617]
[1721049645603,0.13548341,3360.2,3360.0,2.97617]
[1721049645807,0.62258885,3360.3,3360.0,2.97617]
[1721049645966,0.75807984,3360.2,3360.0,2.97617]
[1721049646166,0.62258885,3360.3,3360.0,2.97617]
[1721049646366,0.13549165,3360.2,3359.8,3.52636]
[1721049646606,0.07440882,3360.1,3359.9,2.97627]
[1721049646770,0.69699667,3360.2,3359.9,2.97627]
[1721049646969,0.13551636,3360.1,3359.9,2.97627]
[1721049647209,0.07440782,3360.2,3359.9,2.97627]
[1721049647366,0.75807651,3360.1,3359.9,2.97627]
[1721049647560,0.13552159,3360.0,3359.6,2.97651]
[1721049647843,2.94535492,3359.9,3359.4,2.9767]
[1721049648026,0.75811402,3359.8,3359.5,2.97661]
[1721049648312,0.62255492,3359.6,3359.5,2.97661]
[1721049648609,0.75811402,3359.6,3358.7,7.28]
[1721049648797,0.62255492,3359.4,3358.9,2.97715]
[1721049648965,0.62255492,3359.3,3358.9,2.97715]
[1721049649161,0.69698613,3359.2,3358.7,2.97731]
[1721049649363,0.75811402,3359.1,3358.7,2.97726]
[1721049649568,0.0744334,3359.0,3358.7,2.97726]
[1721049649792,0.69698832,3359.0,3358.7,2.97726]
[1721049650005,2.2711,3358.8,3358.5,2.97749]
[1721049650185,0.07443908,3358.7,3358.5,2.97749]
[1721049650482,0.21017436,3358.7,3358.5,2.97749]
[1721049650730,0.07443908,3358.7,3358.5,2.97749]
[1721049651027,0.62255492,3358.6,3358.4,2.9776]
[1721049651165,0.696995,3358.7,3358.4,2.9776]
[1721049651379,2.89365492,3358.8,3358.2,2.97777]
[1721049651582,2.89365492,3358.8,3357.6,7.28]
[1721049651583,2.2711,3358.8,3358.6,2.97736]
[1721049651847,3.10965492,3359.3,3359.0,2.97707]
[1721049651987,3.10965492,3359.3,3358.8,2.97725]
[1721049652188,0.13513867,3359.2,3358.9,2.97715]
[1721049652425,3.10965492,3359.3,3358.9,2.97715]
[1721049652426,2.4871,3359.3,3359.1,2.97695]
[1721049653506,2.4871,3359.3,3359.2,2.97689]
[1721049657145,0.62148192,3359.6,3358.6,2.97737]
[1721049657282,2.437,3359.8,3359.6,2.97653]
[1721049657490,2.437,3359.8,3359.7,6.5029]
[1721049657684,2.3414,3360.2,3360.0,2.97617]
[1721049658192,2.3414,3360.2,3360.1,2.9761]
[1721049658408,2.3414,3360.2,3360.1,6.5022]
[1721049658602,2.87188192,3360.7,3360.4,2.97576]
[1721049658915,2.87188192,3360.7,3360.1,0.55]
[1721049658916,2.2504,3360.7,3360.1,0.55]
[1721049659200,8.95305304,3361.3,3360.1,0.55]
[1721049659201,0.62148192,3361.5,3361.3,2.97496]
[1721049659406,3.18262288,3361.7,3361.2,2.97512]
[1721049659407,2.87188192,3361.7,3361.2,2.97512]
[1721049659593,2.2504,3361.7,3361.5,2.97486]
[1721049660005,2.2504,3361.7,3361.5,5.94965]
[1721049660206,2.2504,3361.7,3361.6,2.97477]
[1721049660408,3.08678192,3362.2,3361.6,2.97477]
[1721049660608,0.53628641,3362.1,3361.6,2.97477]
[1721049660794,2.605,3361.8,3360.8,2.97548]
[1721049660985,0.62148192,3361.4,3360.9,2.97537]
[1721049661188,0.62148192,3361.4,3360.4,7.28]
[1721049661189,0.83044237,3361.3,3360.7,2.97551]
[1721049661389,3.53722288,3361.4,3360.9,2.97535]
[1721049661390,0.62148192,3361.4,3360.9,2.97535]
[1721049661589,0.40190048,3361.3,3360.8,2.97546]
[1721049661816,0.40190048,3361.3,3360.5,2.97573]
[1721049661817,0.07438952,3361.2,3360.7,2.97552]
[1721049662020,0.07438952,3361.2,3360.4,7.28]
[1721049662222,2.4452,3360.9,3360.4,7.28]
[1721049662425,2.4452,3360.9,3360.4,2.97577]
[1721049662624,0.56712348,3360.8,3360.1,2.97609]
[1721049662932,0.64152491,3360.8,3360.3,2.97591]
[1721049663105,0.56712348,3360.8,3360.4,2.97581]
[1721049664292,2.4452,3360.9,3360.6,2.97565]
[1721049664497,2.4452,3360.9,3360.8,2.97548]
[1721049665502,2.4452,3360.9,3360.8,5.95096]
[1721049665702,0.40190048,3361.3,3361.0,2.97529]
[1721049665932,0.40190048,3361.3,3361.2,2.97512]
[1721049666211,2.4147,3361.4,3361.3,2.97503]
[1721049666613,2.4147,3361.4,3361.3,5.95006]
[1721049666816,2.4231,3361.9,3361.6,2.97476]
[1721049667617,2.4231,3361.9,3361.8,2.97459]
[1721049668003,2.94536654,3362.5,3361.5,2.97481]
[1721049668302,2.94536654,3362.5,3362.4,2.97406]
[1721049668303,2.3244,3362.5,3362.4,2.97406]
[1721049669031,2.3244,3362.5,3362.4,5.94812]
[1721049669236,0.07435327,3363.1,3361.8,2.97453]
[1721049669405,0.07435327,3363.1,3362.1,2.97425]
[1721049669609,2.3723,3363.2,3362.8,2.97369]
[1721049669810,0.31189795,3363.1,3362.2,2.97416]
[1721049670032,0.07435455,3363.0,3362.5,2.97394]
[1721049670244,0.07435455,3363.0,3362.3,3.52415]
[1721049670394,0.07435455,3363.0,3362.6,2.97385]
[1721049670601,0.31189795,3363.1,3362.6,2.97385]
[1721049670930,0.2684198,3363.0,3362.6,2.97385]
[1721049671727,0.07435082,3362.9,3362.6,2.97385]
[1721049672136,0.2684198,3363.0,3362.7,2.97378]
[1721049672341,0.31189795,3363.1,3362.7,2.97378]
[1721049672633,2.3723,3363.2,3363.0,2.97353]
[1721049672802,2.3723,3363.2,3362.8,2.97367]
[1721049674119,0.07434725,3363.1,3362.6,2.97382]
[1721049674499,0.07434725,3363.1,3362.7,2.97378]
[1721049674697,2.3723,3363.2,3362.8,2.97369]
[1721049674937,0.31157701,3363.1,3362.8,2.97369]
[1721049675107,0.23723,3363.1,3362.8,2.97369]
[1721049678179,0.23723,3363.1,3362.6,2.97386]
[1721049678462,0.23723,3363.1,3362.7,2.97379]
[1721049678623,0.23723,3363.1,3362.5,2.97397]
[1721049678826,0.34274032,3363.0,3362.6,2.97387]
[1721049679052,0.34274032,3363.0,3362.3,2.97409]
[1721049679265,0.34274032,3363.0,3361.9,2.97446]
[1721049679429,0.34274032,3363.0,3361.8,2.97455]
[1721049679430,0.61880403,3362.9,3362.4,2.97398]
[1721049679970,0.07435565,3362.8,3362.4,2.97398]
[1721049680323,0.07435565,3362.8,3362.5,2.97397]
[1721049680541,0.61880403,3362.9,3362.5,2.97397]
[1721049680751,0.43601919,3362.8,3362.5,2.97397]
[1721049680951,0.43601919,3362.8,3362.3,2.97409]
[1721049681139,0.43601919,3362.8,3362.2,2.97419]
[1721049681140,0.43601919,3362.8,3362.4,2.97398]
[1721049681539,0.07435558,3362.7,3362.4,2.97398]
[1721049681755,0.43601919,3362.8,3362.2,2.97419]
[1721049681958,0.42967511,3362.7,3362.2,2.97419]
[1721049682141,0.43601919,3362.8,3362.2,2.97419]
[1721049682764,0.43601919,3362.8,3362.5,2.97395]
[1721049682940,0.43601919,3362.8,3362.3,2.97408]
[1721049683266,2.4068,3362.7,3362.3,2.97408]
[1721049683429,2.48115733,3362.7,3362.1,2.97428]
[1721049683729,0.35359805,3362.6,3362.1,2.97428]
[1721049683935,0.07436185,3362.5,3362.1,2.97428]
[1721049684142,0.07436185,3362.5,3362.0,2.97438]
[1721049684143,0.07436185,3362.5,3362.2,2.97424]
[1721049685258,0.07436185,3362.5,3362.1,2.97431]
[1721049685658,0.35359805,3362.6,3362.2,2.97423]
[1721049685842,0.07436072,3362.5,3362.2,2.97423]
[1721049686053,2.4068,3362.7,3362.4,2.97398]
[1721049686237,2.4068,3362.7,3361.7,2.97468]
[1721049686443,2.3827,3363.3,3361.8,3.55]
[1721049686665,2.3827,3363.3,3363.2,2.97335]
[1721049686975,2.62097,3363.3,3363.2,2.97335]
[1721049687174,2.3827,3363.3,3363.2,2.97335]
[1721049687957,2.3827,3363.3,3363.1,2.97343]
[1721049687958,0.1170191,3363.8,3363.3,2.97323]
[1721049688143,0.1170191,3363.8,3362.3,3.0]
[1721049688144,0.1170191,3363.8,3363.7,2.97291]
[1721049688352,0.1170191,3363.8,3363.7,5.94582]
[1721049690378,0.1170191,3363.8,3363.7,6.49582]
[1721049690958,0.1170191,3363.8,3363.7,5.94582]
[1721049691750,0.1170191,3363.8,3363.7,2.97291]
[1721049693352,0.1170191,3363.8,3363.5,2.97304]
[1721049693769,0.1170191,3363.8,3363.4,2.97312]
[1721049694199,0.1170191,3363.8,3363.5,2.97307]
[1721049696314,0.1170191,3363.8,3363.6,2.97299]
[1721049696454,0.1170191,3363.8,3363.1,2.97342]
[1721049696802,0.1170191,3363.8,3362.1,7.28]
[1721049696803,5.48215981,3363.7,3362.9,2.97362]
[1721049697101,0.87401789,3363.6,3362.7,5.94752]
[1721049697276,0.07434728,3363.5,3362.7,2.97373]
[1721049698072,0.07434728,3363.5,3362.5,2.97397]
[1721049698599,2.4027,3363.4,3362.6,2.97381]
[1721049698808,0.07434968,3363.3,3362.6,2.97381]
[1721049699117,0.24770497,3363.2,3362.4,2.97402]
[1721049699261,0.24770497,3363.2,3362.3,2.97414]
[1721049699262,0.32206084,3363.2,3362.3,2.97414]
[1721049699464,0.32206084,3363.2,3362.1,2.97433]
[1721049699700,0.32206084,3363.2,3361.5,7.28]
[1721049699701,2.461,3363.0,3362.3,2.97408]
[1721049699862,0.07435796,3362.9,3362.3,2.97408]
[1721049700063,0.2535358,3362.8,3362.1,2.97431]
[1721049700266,0.2535358,3362.8,3361.9,2.97449]
[1721049700267,0.07436016,3362.7,3361.9,2.97449]
[1721049700471,0.07436016,3362.7,3361.7,2.97467]
[1721049700472,2.2515,3362.6,3361.7,2.97467]
[1721049700671,2.2515,3362.6,3361.9,2.97442]
[1721049701073,0.07436679,3362.5,3361.7,2.97467]
[1721049701269,0.52996868,3362.4,3361.3,2.97502]
[1721049701508,2.2728,3362.2,3361.4,2.9749]
[1721049701671,0.07437652,3362.1,3361.4,2.9749]
[1721049701983,2.89083124,3362.2,3361.2,2.97508]
[1721049702190,2.34718138,3362.2,3361.5,2.97486]
[1721049702402,1.26103513,3362.1,3361.5,2.97486]
[1721049702573,1.26103513,3362.1,3361.3,2.97499]
[1721049702772,1.33541429,3362.1,3361.3,2.97499]
[1721049702995,1.33541429,3362.1,3361.4,2.97494]
[1721049703270,1.26103513,3362.1,3361.5,2.97485]
[1721049703506,2.2728,3362.2,3361.9,2.97449]
[1721049704073,2.2728,3362.2,3361.5,2.97482]
[1721049704513,2.2728,3362.2,3361.7,2.97468]
[1721049704685,0.29652055,3362.1,3361.7,2.97468]
[1721049705007,0.29652055,3362.1,3361.6,2.97475]
[1721049705443,0.29652055,3362.1,3361.5,2.97482]
[1721049705582,0.29652055,3362.1,3361.6,2.97477]
[1721049706296,0.07437313,3362.0,3361.2,2.9751]
[1721049706533,0.40054562,3362.0,3360.8,3.0]
[1721049706685,0.32617249,3362.0,3361.6,2.97476]
[1721049707729,0.32617249,3362.0,3361.4,2.97493]
[1721049708308,0.40054868,3362.0,3361.2,2.97509]
[1721049708512,0.45149473,3361.9,3361.2,2.97509]
[1721049708713,0.07437906,3361.8,3360.4,2.97575]
[1721049708923,0.45149473,3361.9,3360.4,2.97575]
[1721049708924,3.12500382,3361.7,3361.0,2.97528]
[1721049709146,2.9906191,3361.7,3360.8,2.97546]
[1721049709356,0.61803124,3361.5,3360.3,2.97592]
[1721049709501,0.3977695,3361.4,3360.9,2.97533]
[1721049709975,1.01580074,3361.4,3360.9,2.97533]
[1721049710101,3.18922035,3361.3,3360.7,2.97551]
[1721049710302,0.82691113,3361.2,3360.5,2.97574]
[1721049710501,0.07439078,3361.2,3360.3,2.97587]
[1721049710748,0.44539384,3361.1,3359.8,2.97629]
[1721049710960,0.07440061,3361.0,3359.8,2.97629]
[1721049711099,0.07440061,3361.0,3360.2,2.97593]
[1721049711100,0.13457798,3360.9,3360.2,2.97593]
[1721049711304,2.4812,3360.8,3360.3,2.97591]
[1721049711616,2.4812,3360.8,3359.3,2.2954]
[1721049711617,2.4812,3360.8,3360.1,2.97607]
[1721049711820,0.61803124,3361.1,3360.2,2.97597]
[1721049712049,2.4812,3361.3,3360.9,2.97539]
[1721049712222,2.79112312,3361.3,3361.0,2.97529]
[1721049712573,2.4812,3361.3,3361.0,2.97529]
[1721049713076,2.4812,3361.3,3361.2,2.97512]
[1721049713221,2.4812,3361.7,3361.3,2.97503]
[1721049713649,3.09923124,3361.7,3361.3,2.97503]
[1721049713854,2.4812,3361.7,3361.4,2.97494]
[1721049714061,2.4812,3361.7,3361.5,2.9748]
[1721049715349,2.4812,3361.7,3361.3,2.97497]
[1721049715845,2.89743124,3362.1,3360.5,5.3551]
[1721049716183,2.2794,3362.1,3361.9,2.9745]
[1721049717563,2.2794,3362.1,3361.8,2.97458]
[1721049718095,2.2794,3362.1,3361.6,2.97472]
[1721049718248,2.56914312,3362.1,3360.6,13.80563]
[1721049718449,0.0743776,3362.0,3361.5,2.97484]
[1721049718692,0.0743776,3362.0,3361.2,2.97505]
[1721049718693,0.0743776,3362.0,3361.3,2.97497]
[1721049718894,0.79065248,3362.0,3361.4,2.97493]
[1721049719305,0.79065248,3362.0,3361.4,2.97494]
[1721049719810,0.71627488,3362.0,3361.4,2.97494]
[1721049721758,0.71627488,3362.0,3361.5,2.97484]
[1721049721959,2.56914312,3362.1,3361.5,2.97484]
[1721049722386,3.18717436,3362.1,3361.5,2.97484]
[1721049722588,2.56914312,3362.1,3361.5,2.97484]
[1721049722910,2.2794,3362.1,3361.8,2.97452]
[1721049723690,0.92704687,3362.5,3362.1,2.97425]
[1721049723691,0.61803124,3362.5,3362.1,2.97425]
[1721049723871,0.75216136,3362.5,3362.1,2.97425]
[1721049724072,2.95523124,3362.6,3362.1,2.97425]
[1721049724259,0.75216017,3362.5,3361.9,2.97448]
[1721049724460,2.95523124,3362.6,3362.2,5.94832]
[1721049724696,0.13412767,3362.5,3362.2,5.94832]
[1721049724872,3.7670653,3362.6,3362.2,2.97416]
[1721049725168,0.75216966,3362.5,3362.2,2.97416]
[1721049725371,0.61803124,3362.5,3362.2,2.97416]
[1721049725569,0.61803124,3362.5,3361.6,2.97473]
[1721049725570,0.75216411,3362.5,3361.8,2.97452]
[1721049725774,0.46941122,3362.4,3361.8,2.97452]
[1721049725961,0.46941122,3362.4,3361.6,2.97471]
[1721049725962,2.4881,3362.3,3361.6,2.97471]
[1721049726189,3.10613124,3362.3,3361.6,2.97474]
[1721049726385,3.10613124,3362.3,3361.7,2.97462]
[1721049726593,0.45025893,3362.2,3361.6,2.97474]
[1721049726988,0.45025893,3362.2,3361.8,2.97452]
[1721049728781,0.45025893,3362.2,3361.6,2.9747]
[1721049729099,1.27687218,3362.2,3361.4,2.97493]
[1721049729267,1.56579398,3362.1,3361.5,2.97485]
[1721049729599,0.13421171,3362.0,3361.5,2.97485]
[1721049730280,0.75230894,3362.0,3361.3,2.97502]
[1721049730480,0.07437847,3361.9,3361.3,2.97502]
[1721049730680,0.56742544,3361.9,3361.4,2.97491]
[1721049731685,0.49304697,3361.9,3361.4,2.97491]
[1721049733414,2.36557621,3361.8,3361.0,2.97528]
[1721049733612,2.2912,3361.8,3361.2,2.97512]
[1721049733912,0.5758807,3361.7,3361.2,2.97512]
[1721049734898,2.2912,3361.8,3361.2,2.97512]
[1721049735082,0.07438204,3361.7,3361.0,2.97528]
[1721049735430,0.07438204,3361.7,3360.8,2.9754]
[1721049735588,3.04906204,3361.7,3360.9,2.97533]
[1721049735792,2.4946,3361.5,3360.9,2.97533]
[1721049735996,2.4946,3361.5,3360.6,2.97561]
[1721049735997,0.07438701,3361.4,3360.6,2.97561]
[1721049736190,2.4946,3361.3,3360.6,2.97565]
[1721049736418,0.8518827,3361.2,3360.6,2.97565]
[1721049737485,2.4946,3361.3,3360.7,2.9755]
[1721049737679,2.4946,3361.3,3360.5,2.97571]
[1721049737986,0.07439385,3361.2,3360.5,5.9514]
[1721049738207,2.4946,3361.3,3360.5,2.97569]
[1721049738395,0.807457,3361.2,3360.5,2.97569]
[1721049738719,0.807457,3361.2,3360.6,2.97564]
[1721049740213,0.807457,3361.2,3360.7,2.97555]
[1721049741387,0.807457,3361.2,3360.5,5.95142]
[1721049741588,0.807457,3361.2,3360.6,2.97563]
[1721049741792,0.63514031,3361.1,3360.6,2.97563]
[1721049742119,2.46149499,3361.0,3359.7,2.97641]
[1721049742288,2.46149499,3361.0,3359.8,0.55]
[1721049742485,2.46149499,3361.0,3360.3,2.97586]
[1721049742700,2.3871,3361.0,3360.4,2.97583]
[1721049744127,2.3871,3361.0,3360.2,2.976]
[1721049744294,1.1750037,3360.9,3360.3,2.97589]
[1721049744792,0.07440138,3360.8,3360.1,2.97609]
[1721049744992,2.4798,3360.6,3360.1,2.97609]
[1721049745218,2.85272092,3360.6,3360.1,2.97609]
[1721049745487,2.85272092,3360.6,3360.2,2.97601]
[1721049745699,2.4798,3360.6,3360.2,2.97601]
[1721049745900,2.4798,3360.6,3360.3,2.9759]
[1721049746225,0.6229518,3360.4,3360.3,2.9759]
[1721049749432,0.6229518,3360.4,3360.1,2.97603]
[1721049749738,2.4174,3360.3,3359.3,2.97679]
[1721049750030,0.07441355,3360.2,3359.8,2.97631]
[1721049750725,2.4174,3360.3,3359.8,5.95259]
[1721049751128,0.62249744,3359.9,3359.8,2.97628]
[1721049751329,0.13500994,3359.9,3359.8,2.97628]
[1721049752336,0.62249744,3360.0,3359.8,2.97628]
[1721049752948,0.07441192,3359.9,3359.6,2.97649]
[1721049753137,0.69690936,3359.9,3359.4,2.97664]
[1721049753442,0.13493262,3359.8,3359.4,2.97664]
[1721049753624,0.07441834,3359.7,3359.4,2.97664]
[1721049754236,0.07441834,3359.7,3359.5,2.97655]
[1721049754445,0.07441834,3359.7,3359.0,2.97705]
[1721049754446,2.67941723,3359.7,3359.0,2.97705]
[1721049754759,2.3461,3359.5,3358.8,2.97719]
[1721049755067,0.83186084,3359.4,3358.7,2.9773]
[1721049755209,0.13498866,3359.3,3358.9,2.9771]
[1721049755541,2.96859744,3359.5,3358.9,2.97708]
[1721049755701,3.74078018,3359.5,3358.9,2.97708]
[1721049755900,3.81521148,3359.5,3358.9,2.97708]
[1721049756129,3.81521148,3359.5,3359.0,2.97706]
[1721049756344,3.81521148,3359.5,3358.3,2.97769]
[1721049756345,3.81521148,3359.5,3358.7,2.97727]
[1721049756507,1.00192089,3359.4,3358.7,2.97727]
[1721049756733,2.3461,3359.2,3358.5,2.97751]
[1721049756930,0.07444028,3359.1,3358.5,2.97751]
[1721049757740,2.2569,3359.0,3358.3,2.97765]
[1721049757924,0.07444359,3358.9,3358.4,2.9776]
[1721049758125,2.2569,3359.0,3358.5,2.97745]
[1721049758324,0.28793974,3358.9,3358.5,2.97745]
[1721049760929,0.28793974,3358.9,3358.3,2.97765]
[1721049761134,0.28793974,3358.9,3358.4,2.9776]
[1721049761962,0.28793974,3358.9,3358.5,2.97749]
[1721049765961,0.28793974,3358.9,3358.6,2.97742]
[1721049766483,2.2569,3359.0,3358.9,2.97716]
[1721049767431,2.3619,3359.3,3358.9,2.97716]
[1721049770455,2.3619,3359.3,3359.0,2.97707]
[1721049771161,2.3619,3359.3,3358.8,2.97719]
[1721049771364,2.3619,3359.3,3358.7,2.9773]
[1721049771547,0.23619,3359.2,3358.7,2.9773]
[1721049772188,0.23619,3359.2,3358.7,2.97726]
[1721049772561,0.31062584,3359.2,3358.5,2.97743]
[1721049772792,2.4319,3359.1,3358.5,2.97743]
[1721049772957,0.07444139,3359.0,3358.5,2.97743]
[1721049773156,0.9688013,3359.0,3358.5,2.97743]
[1721049773489,0.89435991,3359.0,3358.5,2.97743]
[1721049775554,0.89435991,3359.0,3358.6,2.97742]
[1721049775707,2.4319,3359.1,3358.6,2.97742]
[1721049776230,2.4319,3359.1,3359.0,2.97707]
[1721049776518,2.429,3359.4,3359.1,2.97696]
[1721049776716,0.61918772,3359.7,3358.8,2.97722]
[1721049776879,2.429,3359.8,3359.5,2.97663]
[1721049777073,3.82719693,3359.8,3359.5,2.97663]
[1721049777284,2.429,3359.8,3359.5,2.97663]
[1721049777809,3.04818772,3359.8,3359.1,2.97695]
[1721049777971,0.13211083,3359.7,3359.3,2.97675]
[1721049778173,3.04818772,3359.8,3359.5,2.97662]
[1721049778382,0.75137466,3359.7,3359.5,2.97662]
[1721049778577,0.61918772,3359.7,3359.5,2.97662]
[1721049778778,0.47211751,3359.7,3358.9,2.97712]
[1721049778977,2.3966,3359.5,3358.9,2.97712]
[1721049779203,2.3966,3359.3,3358.5,5.95495]
[1721049779428,2.3966,3359.3,3358.6,2.97743]
[1721049779429,0.61918772,3359.1,3358.6,2.97743]
[1721049779634,0.61918772,3358.9,3358.6,2.97743]
[1721049779936,2.3966,3358.8,3358.3,2.97765]
[1721049780091,0.07444586,3358.7,3358.2,2.97778]
[1721049780294,0.07444586,3358.7,3356.1,0.92856102]
[1721049780295,3.22418772,3358.6,3356.9,2.3395]
[1721049780490,3.22271691,3358.5,3357.6,5.95654]
[1721049780730,0.61918772,3358.1,3356.9,2.97887]
[1721049780901,3.63804177,3358.0,3357.4,2.97847]
[1721049781106,2.88636569,3358.0,3357.4,2.97847]
[1721049781421,2.88636569,3358.0,3357.3,2.97857]
[1721049781422,0.62185347,3357.8,3357.3,2.97857]
[1721049781635,0.62185347,3357.8,3357.4,2.97848]
[1721049781991,0.75447253,3357.8,3357.4,2.97848]
[1721049782192,0.71041497,3357.7,3357.4,2.97848]
[1721049782392,0.71041497,3357.7,3357.0,2.97879]
[1721049782629,0.71041497,3357.7,3356.8,2.97894]
[1721049782630,5.05,3357.5,3356.8,2.97894]
[1721049782836,0.82897164,3357.4,3356.8,2.97894]
[1721049783024,0.13263773,3357.3,3356.9,2.97889]
[1721049783210,0.13263773,3357.3,3356.3,2.97942]
[1721049783211,0.68117505,3357.3,3357.0,2.97884]
[1721049786735,0.07447683,3357.2,3356.7,2.97905]
[1721049787027,0.07447683,3357.2,3356.8,2.97901]
[1721049787251,0.68117505,3357.3,3356.7,2.97905]
[1721049787392,0.0744826,3357.2,3356.7,2.97905]
[1721049788051,0.0744826,3357.2,3356.5,2.97928]
[1721049788052,2.605,3357.1,3356.5,2.97928]
[1721049788214,0.41055222,3357.0,3356.5,2.97928]
[1721049788833,2.3469,3356.9,3356.3,2.97944]
[1721049789199,2.3469,3356.9,3356.5,2.97927]
[1721049789404,2.3469,3356.9,3356.3,2.9794]
[1721049789605,0.0744904,3356.8,3356.3,2.9794]
[1721049789912,0.27574562,3356.7,3356.3,2.9794]
[1721049790323,0.27574562,3356.7,3356.4,2.97936]